Cogmind - Beta 14 @@@ ROGUE MODE // 2024.10.20 @ 23:55:47 Player: ToasterKoishi Result: Destroyed by B-86 Titan with Hardcell Cannon Performance ------------- Evolutions (6) 3000 Regions Visited (10) 2000 Robots Destroyed (0) 0 Value Destroyed (0) 0 Prototype IDs (0) 0 Alien Tech Used (0) 0 Bonus (3380) 3380 TOTAL SCORE: 8380 Bonus ------- Pacifist 2880 Entered DSFs 500 Cogmind --------- Core Integrity 0/1150 Matter 262/300 Energy 98/100 System Corruption 0% Temperature Cool (0) Movement Core (50) Location -4/Factory Parts ------- > --- POWER (2) -------- (None) > --- PROPULSION (5) --- (None) > --- UTILITY (10) ----- (None) > --- WEAPON (2) ------- (None) > --- INVENTORY (5) ---- Advanced Sensor Array Improved Hacking Suite Spear Peak State ------------ > --- POWER ------------ (None) > --- PROPULSION ------- Flight Unit > --- UTILITY ---------- (None) > --- WEAPON ----------- (None) > --- INVENTORY -------- (None) [Rating: 1] Favorites ----------- Power None Propulsion Flight Unit Flight Unit Flight Unit Utility None Weapon None Build | -11 -10 -9 -8 -7 -7 -6 -6 -6 -5 -4 ------- Run | Yrd Mat Mat Mat Fac DSF Fac Low Low Fac Fac Slots Evolved 12 | . . 2 2 2 . 2 . . 2 2 Power 1 | . . . . . . 1 . . . . Propulsion 3 | . . 1 1 . . . . . . 1 Utility 8 | . . 1 1 2 . 1 . . 2 1 Weapon . | . . . . . . . . . . . Parts Attached 1 | . . 1 . . . . . . . . Power . | . . . . . . . . . . . Engine . | . . . . . . . . . . . Core . | . . . . . . . . . . . Reactor . | . . . . . . . . . . . Propulsion 1 | . . 1 . . . . . . . . Treads . | . . . . . . . . . . . Leg . | . . . . . . . . . . . Wheel . | . . . . . . . . . . . Hover . | . . . . . . . . . . . Flight 1 | . . 1 . . . . . . . . Utility . | . . . . . . . . . . . Device . | . . . . . . . . . . . Storage . | . . . . . . . . . . . Processor . | . . . . . . . . . . . Hackware . | . . . . . . . . . . . Protection . | . . . . . . . . . . . Artifact . | . . . . . . . . . . . Weapon . | . . . . . . . . . . . Energy Gun . | . . . . . . . . . . . Energy Cannon . | . . . . . . . . . . . Ballistic Gun . | . . . . . . . . . . . Ballistic Cannon . | . . . . . . . . . . . Launcher . | . . . . . . . . . . . Special Weapon . | . . . . . . . . . . . Impact Weapon . | . . . . . . . . . . . Slashing Weapon . | . . . . . . . . . . . Piercing Weapon . | . . . . . . . . . . . Special Melee Weapon . | . . . . . . . . . . . Unidentified Prototypes . | . . . . . . . . . . . Parts Lost 1 | . . . 1 . . . . . . . Power . | . . . . . . . . . . . Propulsion 1 | . . . 1 . . . . . . . Utility . | . . . . . . . . . . . Weapon . | . . . . . . . . . . . Highest Loss Streak 1 | . . . 1 . . . . . . . To Critical Strikes . | . . . . . . . . . . . Average Slot Usage (%) 1 | . . 4 9 . . . . . . . Flight 1 | . . 4 9 . . . . . . . Peak Build Rating 1 | . . 1 1 . . . . . . 1 Average Rating . | . . . . . . . . . . . On Entrance . | . . . 1 . . . . . . . Naked Turns 575 | . 36 33 4 3 17 73 123 49 13 224 Heaviest Build . | . . . . . . . . . . . Greatest Support 4 | 3 3 4 4 3 3 3 3 3 3 3 Greatest Overweight (x) . | . . . . . . . . . . . Average Overweight (x) . | . . . . . . . . . . . Largest Inventory Capacity 5 | 5 5 5 5 5 5 5 5 5 5 5 Average Capacity 5 | 5 5 5 5 5 5 5 5 5 5 5 Most Carried 3 | . . . . . . 1 1 1 1 3 Average Carried 1 | . . . . . . . 1 1 1 2 Final Capacity 5 | 5 5 5 5 5 5 5 5 5 5 5 Final Carried 3 | . . . . . . 1 1 1 1 3 Class Distribution -------------------- 100% | Mutant Dominant Class ---------------- Mutant | -10/Materials Mutant | -9/Materials Mutant | -8/Materials Mutant | -7/Factory Mutant | -7/DSF Mutant | -6/Factory Mutant | -6/Lower Caves Mutant | -6/Lower Caves Mutant | -5/Factory Mutant | -4/Factory Resources | -11 -10 -9 -8 -7 -7 -6 -6 -6 -5 -4 ----------- Run | Yrd Mat Mat Mat Fac DSF Fac Low Low Fac Fac Matter Collected 134 | 114 . 20 . . . . . . . . Remotely . | . . . . . . . . . . . Salvage Created . | . . . . . . . . . . . Parts . | . . . . . . . . . . . Haulers Intercepted . | . . . . . . . . . . . Recyclers Shooed . | . . . . . . . . . . . Parts Field Recycled . | . . . . . . . . . . . Retrieved Matter . | . . . . . . . . . . . Parts Self-Destructed 3 | . . . . . . . 3 . . . Prevented . | . . . . . . . . . . . Kills | -11 -10 -9 -8 -7 -7 -6 -6 -6 -5 -4 ------- Run | Yrd Mat Mat Mat Fac DSF Fac Low Low Fac Fac Combat Hostiles Destroyed . | . . . . . . . . . . . Classes Destroyed . | . . . . . . . . . . . Best Kill Streak . | . . . . . . . . . . . Combat Bots Only . | . . . . . . . . . . . Max Kills in Single Turn . | . . . . . . . . . . . Gunslinging . | . . . . . . . . . . . Exploded . | . . . . . . . . . . . Melee . | . . . . . . . . . . . Uniques/NPCs Destroyed . | . . . . . . . . . . . Combat | -11 -10 -9 -8 -7 -7 -6 -6 -6 -5 -4 -------- Run | Yrd Mat Mat Mat Fac DSF Fac Low Low Fac Fac Hostile Shots Fired 196 | . 7 41 13 . 1 11 8 . . 115 Missed 84 | . 2 19 8 . 1 5 4 . . 45 Damage Taken 1684 | . 69 230 74 . . 73 61 . . 1177 Core 1654 | . 69 215 59 . . 73 61 . . 1177 Absorbed by Shields . | . . . . . . . . . . . Core Remaining (%) 84 | 100 72 46 89 . 100 . . 84 100 . Volleys Fired . | . . . . . . . . . . . Largest . | . . . . . . . . . . . Hottest . | . . . . . . . . . . . Shots Fired . | . . . . . . . . . . . Gun . | . . . . . . . . . . . Cannon . | . . . . . . . . . . . Launcher . | . . . . . . . . . . . Special . | . . . . . . . . . . . Kinetic . | . . . . . . . . . . . Thermal . | . . . . . . . . . . . Explosive . | . . . . . . . . . . . Electromagnetic . | . . . . . . . . . . . Robot Hit Streak . | . . . . . . . . . . . Robot Miss Streak . | . . . . . . . . . . . Penetration Max . | . . . . . . . . . . . Secondary Targets . | . . . . . . . . . . . Shots Hit Robots . | . . . . . . . . . . . Core Hits . | . . . . . . . . . . . Critical Kills . | . . . . . . . . . . . Critical Parts Destroyed . | . . . . . . . . . . . Critical Strikes . | . . . . . . . . . . . Melee Attacks . | . . . . . . . . . . . Impact . | . . . . . . . . . . . Slashing . | . . . . . . . . . . . Piercing . | . . . . . . . . . . . Sneak Attacks . | . . . . . . . . . . . Combat Hostiles . | . . . . . . . . . . . Follow-up Attacks . | . . . . . . . . . . . Damage Inflicted 51 | . . 6 . . . 18 . . . 27 Guns . | . . . . . . . . . . . Cannons . | . . . . . . . . . . . Explosions . | . . . . . . . . . . . Melee . | . . . . . . . . . . . Ramming 51 | . . 6 . . . 18 . . . 27 Kinetic . | . . . . . . . . . . . Thermal . | . . . . . . . . . . . Explosive . | . . . . . . . . . . . Electromagnetic . | . . . . . . . . . . . Impact . | . . . . . . . . . . . Slashing . | . . . . . . . . . . . Piercing . | . . . . . . . . . . . Highest Corruption 2 | . . 2 . . . . . . . . Average Corruption 2 | . . 2 . . . . . . . . Corruption Purged . | . . . . . . . . . . . Corruption Blocked . | . . . . . . . . . . . Overload Shots . | . . . . . . . . . . . Overflow Damage . | . . . . . . . . . . . Projectiles . | . . . . . . . . . . . Explosions . | . . . . . . . . . . . Melee . | . . . . . . . . . . . Knockbacks . | . . . . . . . . . . . Impact . | . . . . . . . . . . . Kinetic . | . . . . . . . . . . . Secondary . | . . . . . . . . . . . Self-Inflicted Damage 23 | . . 2 . . . 8 . . . 13 Shots . | . . . . . . . . . . . Rammed 10 | . . 2 . . . 2 . . . 6 Targets Rammed 10 | . . 2 . . . 2 . . . 6 Kicked . | . . . . . . . . . . . Crushed . | . . . . . . . . . . . Highest Temperature . | . . . . . . . . . . . Average Temperature . | . . . . . . . . . . . Received Heat Transfer 249 | . 39 60 63 . . 21 . . . 66 Siege Activations . | . . . . . . . . . . . Robots Corrupted . | . . . . . . . . . . . Combat Hostiles . | . . . . . . . . . . . Parts Fried . | . . . . . . . . . . . Impact Corruptions . | . . . . . . . . . . . Robots Melted . | . . . . . . . . . . . Combat Hostiles . | . . . . . . . . . . . Parts Melted . | . . . . . . . . . . . Heat Transferred . | . . . . . . . . . . . Parts Sabotaged . | . . . . . . . . . . . Parts Stolen . | . . . . . . . . . . . Parts Stripped . | . . . . . . . . . . . Power Chain Reactions . | . . . . . . . . . . . Alert | -11 -10 -9 -8 -7 -7 -6 -6 -6 -5 -4 ------- Run | Yrd Mat Mat Mat Fac DSF Fac Low Low Fac Fac Peak Influence 542 | . 15 50 57 21 18 24 . . 6 542 Initial 27 | . . 5 27 21 18 9 . . 6 2 Average 83 | . 2 40 49 21 18 18 . . 6 148 Maximum Alert Level 2 | . . . . . . . . . . 2 Low Security (%) 86 | 100 100 100 100 100 100 100 . . 100 71 Level 1 4 | . . . . . . . . . . 10 Level 2 8 | . . . . . . . . . . 17 Level 3 . | . . . . . . . . . . . Level 4 . | . . . . . . . . . . . Level 5 . | . . . . . . . . . . . High Security . | . . . . . . . . . . . Max Security . | . . . . . . . . . . . Squads Dispatched 3 | . . 1 1 . . . . . . 1 Investigation 1 | . . . . . . . . . . 1 Extermination . | . . . . . . . . . . . Reinforcement 2 | . . 1 1 . . . . . . . Assault . | . . . . . . . . . . . Garrison . | . . . . . . . . . . . Intercept . | . . . . . . . . . . . Searches Triggered . | . . . . . . . . . . . Construction Impeded . | . . . . . . . . . . . Haulers Reinforced . | . . . . . . . . . . . Active Scanning Responses . | . . . . . . . . . . . Cargo Convoy Interrupts . | . . . . . . . . . . . Stealth | -11 -10 -9 -8 -7 -7 -6 -6 -6 -5 -4 --------- Run | Yrd Mat Mat Mat Fac DSF Fac Low Low Fac Fac Distress Signals 2 | . . . 1 . . . . . . 1 Communications Jammed . | . . . . . . . . . . . Distress Signals . | . . . . . . . . . . . Times Spotted 66 | . 4 12 6 . . 5 1 . . 38 Peak Tracking Total 19 | . 3 10 6 . 1 5 1 . . 19 Tactical Retreats 7 | . . 1 . . . . . . . 6 Traps | -11 -10 -9 -8 -7 -7 -6 -6 -6 -5 -4 ------- Run | Yrd Mat Mat Mat Fac DSF Fac Low Low Fac Fac Traps Triggered . | . . . . . . . . . . . Indirectly . | . . . . . . . . . . . Trap Hack Attempts . | . . . . . . . . . . . Triggered . | . . . . . . . . . . . Disarmed . | . . . . . . . . . . . Reprogrammed . | . . . . . . . . . . . Reused . | . . . . . . . . . . . Traps Extracted . | . . . . . . . . . . . Installed . | . . . . . . . . . . . Triggered . | . . . . . . . . . . . Machines | -11 -10 -9 -8 -7 -7 -6 -6 -6 -5 -4 ---------- Run | Yrd Mat Mat Mat Fac DSF Fac Low Low Fac Fac Machines Disabled . | . . . . . . . . . . . Max in Single Turn . | . . . . . . . . . . . Machines Repaired . | . . . . . . . . . . . Machines Dismantled . | . . . . . . . . . . . Machines Sabotaged . | . . . . . . . . . . . Overloaded Fab Kills . | . . . . . . . . . . . Hacking | -11 -10 -9 -8 -7 -7 -6 -6 -6 -5 -4 --------- Run | Yrd Mat Mat Mat Fac DSF Fac Low Low Fac Fac Machines Accessed 6 | . . . 1 1 . . 1 . . 3 Terminals 5 | . . . 1 1 . . . . . 3 Fabricators . | . . . . . . . . . . . Repair Stations . | . . . . . . . . . . . Recycling Units . | . . . . . . . . . . . Scanalyzers . | . . . . . . . . . . . Garrison Access . | . . . . . . . . . . . Total Hacks 16 | . . . 4 1 . . 1 . . 10 Successful 3 | . . . . 1 . . 1 . . 1 Failed 13 | . . . 4 . . . . . . 9 Catastrophic 1 | . . . 1 . . . . . . . Database Lockouts . | . . . . . . . . . . . Manual 8 | . . . 4 . . . . . . 4 Terminals 15 | . . . 4 1 . . . . . 10 Fabricators . | . . . . . . . . . . . Repair Stations . | . . . . . . . . . . . Recycling Units . | . . . . . . . . . . . Scanalyzers . | . . . . . . . . . . . Garrison Access . | . . . . . . . . . . . Terminal Hacks 3 | . . . . 1 . . 1 . . 1 Open Door 1 | . . . . . . . 1 . . . Open DSF 1 | . . . . 1 . . . . . . Zone Layout 1 | . . . . . . . . . . 1 Fabricator Hacks . | . . . . . . . . . . . Repair Station Hacks . | . . . . . . . . . . . Recycling Unit Hacks . | . . . . . . . . . . . Scanalyzer . | . . . . . . . . . . . Garrison Access Hacks . | . . . . . . . . . . . Unauthorized Hacks . | . . . . . . . . . . . Terminals . | . . . . . . . . . . . Fabricators . | . . . . . . . . . . . Repair Stations . | . . . . . . . . . . . Recycling Units . | . . . . . . . . . . . Scanalyzers . | . . . . . . . . . . . Garrison Access . | . . . . . . . . . . . Data Cores Recovered . | . . . . . . . . . . . Used . | . . . . . . . . . . . Hacking Detections 5 | . . . 1 1 . . . . . 3 Full Trace Events 2 | . . . 1 . . . . . . 1 Feedback Events . | . . . . . . . . . . . Feedback Blocked . | . . . . . . . . . . . Robot Schematics Acquired . | . . . . . . . . . . . Robots Built . | . . . . . . . . . . . Authchips . | . . . . . . . . . . . Time . | . . . . . . . . . . . Total Robot Build Rating . | . . . . . . . . . . . Part Schematics Acquired . | . . . . . . . . . . . Parts Built . | . . . . . . . . . . . Authchips . | . . . . . . . . . . . Time . | . . . . . . . . . . . Total Part Build Rating . | . . . . . . . . . . . Parts Repaired . | . . . . . . . . . . . Time . | . . . . . . . . . . . Parts Recycled . | . . . . . . . . . . . Recycled Matter . | . . . . . . . . . . . Retrieved Matter . | . . . . . . . . . . . Retrieved Components . | . . . . . . . . . . . Parts Scanalyzed . | . . . . . . . . . . . Part Schematics Acquired . | . . . . . . . . . . . Parts Damaged . | . . . . . . . . . . . Bothacking | -11 -10 -9 -8 -7 -7 -6 -6 -6 -5 -4 ------------ Run | Yrd Mat Mat Mat Fac DSF Fac Low Low Fac Fac Used RIF Installer . | . . . . . . . . . . . Robots Hacked . | . . . . . . . . . . . Non-combat . | . . . . . . . . . . . Combat . | . . . . . . . . . . . Robot Hacks Applied . | . . . . . . . . . . . Relay Couplers Released . | . . . . . . . . . . . Fabnet Peak Effective % . | . . . . . . . . . . . Robots Rewired . | . . . . . . . . . . . Allies Hacked . | . . . . . . . . . . . Hacks Repelled . | . . . . . . . . . . . Allies | -11 -10 -9 -8 -7 -7 -6 -6 -6 -5 -4 -------- Run | Yrd Mat Mat Mat Fac DSF Fac Low Low Fac Fac Total Allies . | . . . . . . . . . . . Largest Group . | . . . . . . . . . . . Highest-Rated Group . | . . . . . . . . . . . Highest-Rated Ally . | . . . . . . . . . . . Total Orders . | . . . . . . . . . . . Ally Attacks . | . . . . . . . . . . . Total Damage . | . . . . . . . . . . . Kills . | . . . . . . . . . . . Allies Corrupted . | . . . . . . . . . . . Allies Melted . | . . . . . . . . . . . Intel | -11 -10 -9 -8 -7 -7 -6 -6 -6 -5 -4 ------- Run | Yrd Mat Mat Mat Fac DSF Fac Low Low Fac Fac Robot Analysis Total . | . . . . . . . . . . . Derelict Logs Recovered . | . . . . . . . . . . . Drone Launches . | . . . . . . . . . . . Drone Recoveries . | . . . . . . . . . . . Exploration | -11 -10 -9 -8 -7 -7 -6 -6 -6 -5 -4 ------------- Run | Yrd Mat Mat Mat Fac DSF Fac Low Low Fac Fac Turns Passed 649 | 9 36 52 50 3 17 73 123 49 13 224 Spaces Moved 1299 | 18 72 105 123 6 34 140 245 98 26 432 Core 1141 | 18 72 61 9 6 34 140 245 98 26 432 Treads . | . . . . . . . . . . . Legs . | . . . . . . . . . . . Wheels . | . . . . . . . . . . . Hover . | . . . . . . . . . . . Flight 158 | . . 44 114 . . . . . . . Fastest Speed 40 | 50 50 40 40 50 50 50 50 50 50 50 Average Speed 48 | 50 50 45 40 50 50 50 50 50 50 50 Slowest Speed 50 | 50 50 50 50 50 50 50 50 50 50 50 Overloaded Moves . | . . . . . . . . . . . Propulsion Burnouts . | . . . . . . . . . . . Robots Hopped 4 | . . 3 1 . . . . . . . Cave-ins Triggered . | . . . . . . . . . . . Exploration Rate (%) 19 | 3 22 14 21 . 41 5 50 19 1 21 Regions Visited 10 Branch Regions 2 Pre-discovered Areas . | . . . . . . . . . . . Known Exits Taken 1 | . . . . 1 . . . . . . Unknown Exits Taken 8 | 1 1 1 1 . . 1 1 1 1 . Scrap Searched . | . . . . . . . . . . . Spaces Dug . | . . . . . . . . . . . Terrain Destroyed . | . . . . . . . . . . . Melee . | . . . . . . . . . . . Projectile . | . . . . . . . . . . . AOE . | . . . . . . . . . . . Terrain Rammed . | . . . . . . . . . . . Walls Destroyed . | . . . . . . . . . . . Machines Disabled . | . . . . . . . . . . . Actions | -11 -10 -9 -8 -7 -7 -6 -6 -6 -5 -4 --------- Run | Yrd Mat Mat Mat Fac DSF Fac Low Low Fac Fac Total 1299 | 17 71 104 121 5 33 142 244 97 25 440 Wait . | . . . . . . . . . . . Move 1282 | 17 71 99 120 5 33 139 244 97 25 432 Hop 3 | . . 2 1 . . . . . . . Pick Up 3 | . . . . . . 1 . . . 2 Fast Attach 1 | . . 1 . . . . . . . . Attach . | . . . . . . . . . . . Detach . | . . . . . . . . . . . Swap . | . . . . . . . . . . . Drop . | . . . . . . . . . . . Fire . | . . . . . . . . . . . Melee . | . . . . . . . . . . . Ram 10 | . . 2 . . . 2 . . . 6 Kick . | . . . . . . . . . . . Crush . | . . . . . . . . . . . Escape Stasis . | . . . . . . . . . . . Rewire . | . . . . . . . . . . . Trap . | . . . . . . . . . . . Miscellaneous . | . . . . . . . . . . . Route ------- -11/Scrapyard -10/Materials -9/Materials -8/Materials -7/Factory -7/DSF -6/Factory -6/Lower Caves -6/Lower Caves -5/Factory -4/Factory History --------- Turn | Location | Event 2 | -11/Scrapyard | Met Revision 17 3 | -11/Scrapyard | Discovered new exit (range 15) 10 | -11/Scrapyard | Entered Materials 42 | -10/Materials | Discovered new exit (range 10) 46 | -10/Materials | Entered another Materials area 46 | -9/Materials | Evolved 2 slots: Propulsion x1, Utility x1 91 | -9/Materials | Core integrity fell below 50% 96 | -9/Materials | Discovered new exit (range 5) 98 | -9/Materials | Entered another Materials area 98 | -8/Materials | Evolved 2 slots: Propulsion x1, Utility x1 141 | -8/Materials | Discovered new exit (range 16) 148 | -8/Materials | Entered Factory 148 | -7/Factory | Evolved 2 slots: Utility x2 151 | -7/Factory | Identified exit to DSF 151 | -7/Factory | Entered DSF 163 | -7/DSF | Discovered new exit (range 11) 168 | -7/DSF | Entered Factory 168 | -6/Factory | Evolved 2 slots: Power x1, Utility x1 237 | -6/Factory | Discovered new exit (range 9) 241 | -6/Factory | Entered Lower Caves 309 | -6/Lower Caves | Build established: Mutant 360 | -6/Lower Caves | Discovered new exit (range 9) 364 | -6/Lower Caves | Entered another Lower Caves area 408 | -6/Lower Caves | Discovered new exit (range 10) 413 | -6/Lower Caves | Entered Factory 413 | -5/Factory | Evolved 2 slots: Utility x2 419 | -5/Factory | Discovered new exit (range 15) 426 | -5/Factory | Entered another Factory area 426 | -4/Factory | Evolved 2 slots: Propulsion x1, Utility x1 564 | -4/Factory | Core integrity fell below 50% 600 | -4/Factory | Core integrity fell below 20% 650 | -4/Factory | Spotted B-86 Titan 650 | -4/Factory | Destroyed by B-86 Titan with Hardcell Cannon Last Messages --------------- 00503_ ALERT: Suspicious activity at Terminal F022. Dispatching Investigation squad. 00510_ Connecting with Terminal... 00516_ ALERT: All DSF locations entering lockdown mode. 00517_ Acquired Imp. Hacking Suite. 00520_ U-05 Engineer works on Pressure Siphon. 00547_ Slug penetrates Wall. 00548_ K-01 Serf cleans the Power Conduit. 00560_ Slammed into U-05 Engineer. 00567_ K-01 Serf destroyed. 00569_ K-01 Serf collects debris. 00570_ R-10 Processor collects Wheel. 00572_ K-01 Serf collects debris. 00579_ K-01 Serf cleans the Matter Pump. 00580_ K-01 Serf cleans the Nuclear Reactor. 00583_ K-01 Serf cleans the Matter Pump. 00598_ S-27 Virus destroyed. 00615_ Knocked back. 00618_ Slammed into W-44 Eye. 00620_ Slammed into U-05 Engineer. 00622_ Slammed into W-44 Eye. Map ----- +----------------------------------------------------+ | ?????????????????????????????????????????????????? | | ?????????????????????????????????????????????????? | | #########????????????????????????????????????????? | | ????????????????????????????????????????? | | ????????????????????????????????????????? | | ?????????????????????????????????????????? | | ??????????????????????????????????????????? | | ???????????????????????????????????????????? | | #########????????????????????????????????????? | | # #????????????????????????????????????? | | # = #????????????????????????????????????? | | + #????????????????????????????????????? | | # #????????????????????????????????????? | | # #????????????????????????????????????? | | # #????????????????????????????????????? | | ##### #????????????????????????????????????? | | ## #????????????????????????????????????? | | ## #????????????????????????????????????? | | ## #########????????????????????????????? | | ## # ! #????????????????????????????? | | #######+##""" !#????????????????????????????? | | #?????# ##""" #????????????????????????????? | | #?????# ##""" * !#????????????????????????????? | | #?????# ## #????????????????????????????? | | #?????# #####+##+######### #??????????????????? | | #?????# @% #??????????????????? | | #?????# ########### #??????????????????? | | #?????# #?????????; ?????????????? | | ####?????# #?????????B #???????????? | | ?????????# #????????BB ![/ !! #???????????? | | ?????????# #????????## ![ !! ??????????? | | ?????????+ ?????????# [/ ??????????? | | ?????????# #####????????# ??????????? | | ?????????# ?????????????# ???????????? | | ????????? ??????????????### ???????????? | | ????????? ????????????????? ????????????? | | ????????##+????????????????? ????????????? | | ????????????????????????????#######??????????????? | | ?????????????????????????????????????????????????? | | ?????????????????????????????????????????????????? | | # #??????????????????????????????????????????? | | +??????????????????????????????????????????? | | #= #??????????????????????????????????????????? | | ?? ????????????????????????????????????????????? | | ??? ##???????????????????????????????????????????? | | ?????????????????????????????????????????????????? | | ?????????????????????????????????????????????????? | | ?????????????????????????????????????????????????? | | ?????????????????????????????????????????????????? | | ?????????????????????????????????????????????????? | +----------------------------------------------------+ Best States ------------- Heat Dissipation 43 Energy Generation 5 Energy Capacity 100 Matter Stores 262 Matter Capacity 300 Sight Range 16 Terrain Scan Density 10 Evasion (%) 62 Item Schematics ----------------- None Robot Schematics ------------------ None Fabricated ------------ Nothing Alien Tech Used ----------------- None Achievements -------------- None Challenges ------------ None Game ------ Seed BlastGammaStabilizer Manual? 0 Play Time 00:12:15 Cumulative 97.6 hours Start 2024.10.20 @ 23:46:55 End 2024.10.20 @ 23:55:47 Sessions 1 Manual Loads 0 Difficulty Rogue Special Mode None Game No. 125 Rogue 125 Adventurer 0 Explorer 0 Win Type - Total 13 Types 12/0/1/0/0/0/0/0/0 Lore% 36 Gallery% 48 Achievement% 50 Wizard Run 0 Options --------- Layout 0 ASCII 0 Keyboard 1 Movement Numpad Keybinds 0 Fullscreen 2 Font 18/SmallcapsGlow Map View 112x50 Zoom Use 0% Tactical HUD 1 Map Filters NONE Filters NONE Steam 1 RUN: 21e40687-3e80-47c6-ba3e-30fc9e5416bd